bitfinex/quotes_SOLUSD_20250401
["timestamp","ask_amount","ask_price","bid_price","bid_amount"]
[1743503172909,0.063,128.82,128.81,0.28432314]
[1743503173075,7.7591,128.88,128.83,0.28432314]
[1743503173283,7.7591,128.88,128.84,6.72]
[1743503173805,14.97998612,128.88,128.84,6.72]
[1743503174101,7.22088612,128.87,128.84,6.72]
[1743503174295,27.1569,128.88,128.8,20.0]
[1743503174296,34.37778612,128.88,128.8,20.0]
[1743503174493,7.22088612,128.87,128.81,7.00432314]
[1743503175412,14.98118612,128.86,128.81,7.00432314]
[1743503176783,7.7603,128.86,128.81,7.00432314]
[1743503177912,7.22088612,128.89,128.83,0.28432314]
[1743503178712,14.97938612,128.89,128.83,0.28432314]
[1743503179225,7.22088612,128.88,128.83,0.28432314]
[1743503179709,7.22088612,128.88,128.82,0.28432314]
[1743503180226,7.22088612,128.87,128.82,0.28432314]
[1743503181011,7.7603,128.86,128.82,0.28432314]
[1743503182617,7.7603,128.86,128.81,20.0]
[1743503182919,7.7597,128.87,128.82,7.00432314]
[1743503183094,7.7597,128.87,128.84,0.28432314]
[1743503186119,7.8227,128.87,128.84,0.28432314]
[1743503190026,0.063,128.87,128.84,0.28432314]
[1743503190826,0.063,128.87,128.84,28.04582314]
[1743503191202,0.063,128.87,128.84,20.28432314]
[1743503193434,0.063,128.87,128.86,0.28432314]
[1743503194114,0.063,128.87,128.86,7.00432314]
[1743503203055,0.063,128.87,128.86,0.28432314]
[1743503203234,0.063,128.87,128.86,7.00432314]
[1743503204254,0.063,128.87,128.86,230.50432314]
[1743503205822,7.28388612,128.87,128.86,223.5]
[1743503206047,7.28388612,128.87,128.86,230.22]
[1743503207348,15.04358612,128.87,128.86,230.22]
[1743503214552,15.04358612,128.87,128.86,223.5]
[1743503214933,34.44288612,128.87,128.86,223.52]
[1743503215250,34.44288612,128.87,128.81,0.31432314]
[1743503215467,7.7615,128.84,128.81,0.03]
[1743503215632,14.98238612,128.84,128.81,0.03]
[1743503216032,14.98238612,128.84,128.82,6.72]
[1743503216245,7.7615,128.84,128.82,6.72]
[1743503216552,7.7615,128.84,128.83,6.72]
[1743503216749,7.7615,128.84,128.83,230.24]
[1743503217850,7.7609,128.85,128.84,0.28432314]
[1743503222665,7.7609,128.85,128.83,230.24]
[1743503223362,14.98178612,128.85,128.83,223.52]
[1743503223567,7.22088612,128.84,128.83,223.52]
[1743503223767,7.22088612,128.84,128.83,230.24]
[1743503224863,14.98238612,128.84,128.83,230.24]
[1743503226754,34.38628612,128.84,128.83,223.56]
[1743503227072,60.86843498,128.84,128.83,6.72]
[1743503227237,38.64964886,128.82,128.81,0.03]
[1743503227436,45.87053498,128.82,128.81,0.03]
[1743503228349,45.87053498,128.82,128.81,6.75]
[1743503228562,53.63323498,128.82,128.81,6.75]
[1743503228973,53.63323498,128.82,128.81,0.03]
[1743503229281,53.63323498,128.82,128.81,6.75]
[1743503229782,53.63323498,128.82,128.81,0.03]
[1743503229986,53.63323498,128.82,128.81,6.75]
[1743503231787,101.92367946,128.82,128.78,0.0001]
[1743503231971,7.22088612,128.79,128.78,0.0001]
[1743503232879,14.98538612,128.79,128.78,6.7201]
[1743503236486,7.7645,128.79,128.78,6.7201]
[1743503236697,7.7645,128.79,128.78,7.00442314]
[1743503236988,7.7639,128.8,128.78,230.62442314]
[1743503237583,14.98478612,128.8,128.78,230.62442314]
[1743503238170,14.98478612,128.8,128.78,230.3401]
[1743503239994,7.22088612,128.79,128.78,223.6201]
[1743503240217,7.22088612,128.79,128.78,230.3401]
[1743503241895,14.98538612,128.79,128.78,230.3401]
[1743503247506,14.98538612,128.79,128.78,223.6201]
[1743503247725,14.98538612,128.79,128.78,230.3401]
[1743503249118,34.39678612,128.79,128.78,223.66]
[1743503249286,34.39678612,128.79,128.74,0.31432314]
[1743503249619,7.22088612,128.77,128.74,0.31432314]
[1743503250121,7.7663,128.76,128.74,0.31432314]
[1743503250322,7.7663,128.76,128.75,6.75]
[1743503252214,7.7663,128.76,128.75,0.03]
[1743503252394,7.7663,128.76,128.75,6.75]
[1743503256219,7.7657,128.77,128.75,6.75]
[1743503256722,0.063,128.78,128.76,223.96432314]
[1743503260214,27.22088612,128.77,128.75,0.03]
[1743503260520,20.0,128.77,128.76,230.38]
[1743503261719,27.22088612,128.77,128.76,230.38]
[1743503262402,34.98658612,128.77,128.76,230.38]
[1743503264623,34.98658612,128.77,128.76,223.68]
[1743503265707,34.98658612,128.77,128.75,0.03]
[1743503266729,34.98658612,128.77,128.76,223.7]
[1743503267232,34.98658612,128.77,128.76,230.42]
[1743503270625,34.98658612,128.77,128.76,223.7]
[1743503271235,34.98658612,128.77,128.75,0.03]
[1743503271432,7.22088612,128.76,128.75,0.03]
[1743503271728,14.98718612,128.76,128.75,0.03]
[1743503271927,14.98718612,128.76,128.75,6.75]
[1743503276731,14.98718612,128.76,128.75,230.47]
[1743503280248,7.7663,128.76,128.75,230.47]
[1743503280454,7.7663,128.76,128.75,230.75432314]
[1743503280656,7.7657,128.77,128.75,230.75432314]
[1743503280959,14.98658612,128.77,128.75,230.75432314]
[1743503282246,7.7657,128.77,128.75,230.75432314]
[1743503282571,14.98658612,128.77,128.75,230.75432314]
[1743503284764,7.28388612,128.78,128.75,230.75432314]
[1743503285348,7.22088612,128.77,128.75,230.75432314]
[1743503285546,0.063,128.78,128.76,0.28432314]
[1743503286877,0.063,128.78,128.77,20.28432314]
[1743503287350,0.063,128.78,128.77,28.05002314]
[1743503288997,6.91109777,128.83,128.78,0.28432314]
[1743503289145,6.91109777,128.83,128.8,0.28432314]
[1743503289876,14.13198389,128.83,128.8,0.28432314]
[1743503292081,14.13198389,128.83,128.81,223.66]
[1743503292865,7.22088612,128.82,128.81,223.66]
[1743503293261,14.98358612,128.82,128.81,223.66]
[1743503296368,14.98358612,128.82,128.81,230.38]
[1743503299482,7.7627,128.82,128.81,230.38]
[1743503299684,0.063,128.84,128.81,230.38]
[1743503299992,7.22088612,128.83,128.81,230.38]
[1743503301085,7.7627,128.82,128.81,230.38]
[1743503301392,14.98358612,128.82,128.81,230.38]
[1743503304587,14.98358612,128.82,128.81,230.41]
[1743503309792,14.98358612,128.82,128.81,223.69]
[1743503310100,14.98358612,128.82,128.81,230.41]
[1743503310468,14.98358612,128.82,128.76,1.88562314]
[1743503310469,34.39048612,128.82,128.76,1.88562314]
[1743503310669,27.1696,128.82,128.81,223.62]
[1743503311793,34.39048612,128.82,128.81,223.62]
[1743503313282,102.0878306,128.82,128.76,0.28432314]
[1743503313581,7.22088612,128.79,128.77,6.72]
[1743503313782,7.22088612,128.78,128.77,6.72]
[1743503313968,7.22088612,128.78,128.75,0.03]
[1743503314179,7.22088612,128.78,128.76,6.72]
[1743503314370,27.22088612,128.77,128.75,0.03]
[1743503314601,7.22088612,128.76,128.75,0.03]
[1743503314800,14.98718612,128.76,128.75,0.03]
[1743503315593,33.63683498,128.76,128.75,0.0001]
[1743503315792,33.63683498,128.76,128.75,6.7201]
[1743503316301,62.52037946,128.76,128.75,6.7201]
[1743503316681,62.52037946,128.76,128.75,230.3801]
[1743503316888,33.63683498,128.76,128.75,223.6601]
[1743503317106,33.63683498,128.76,128.75,230.3801]
[1743503317601,33.63683498,128.76,128.74,0.03]
[1743503317900,26.41594886,128.76,128.75,223.66]
[1743503318998,26.41594886,128.76,128.75,230.38]
[1743503319213,33.63683498,128.76,128.75,230.38]
[1743503320385,62.52037946,128.76,128.74,0.03]
[1743503320591,7.22088612,128.75,128.74,0.03]
[1743503320902,14.98778612,128.75,128.74,0.03]
[1743503321890,14.98778612,128.75,128.74,6.75]
[1743503323987,14.98778612,128.75,128.73,0.03]
[1743503323988,33.63743498,128.75,128.73,0.03]
[1743503324212,7.22088612,128.74,128.73,0.03]
[1743503325294,14.98838612,128.74,128.73,6.75]
[1743503325702,33.63803498,128.74,128.72,0.03]
[1743503325889,25.87053498,128.73,128.71,0.0001]
[1743503326094,7.22088612,128.72,128.71,0.0001]
[1743503326735,7.22088612,128.72,128.71,223.72]
[1743503327012,7.22088612,128.72,128.69,0.03]
[1743503327321,7.22088612,128.7,128.69,0.03]
[1743503327488,14.99088612,128.7,128.69,6.75]
[1743503329204,33.64053498,128.7,128.69,6.75]
[1743503330617,14.99088612,128.7,128.69,6.75]
[1743503332316,14.99088612,128.7,128.69,0.03]
[1743503332519,14.99088612,128.7,128.69,6.75]
[1743503336811,14.99088612,128.7,128.69,230.53]
[1743503340324,7.77,128.7,128.69,230.53]
[1743503340818,7.7696,128.71,128.69,230.53]
[1743503341020,0.063,128.72,128.7,0.28432314]
[1743503343021,7.77,128.7,128.69,230.53]
[1743503343805,14.99088612,128.7,128.69,223.81]
[1743503344006,14.99088612,128.7,128.69,230.53]
[1743503345621,7.77,128.7,128.69,230.53]
[1743503351331,7.7697,128.71,128.69,230.53]
[1743503352737,7.8318,128.72,128.69,230.53]
[1743503353432,0.063,128.72,128.7,0.28432314]
[1743503355832,0.063,128.72,128.69,232.1549]
[1743503356032,0.063,128.72,128.7,6.72]
[1743503356033,7.22088612,128.71,128.7,6.72]
[1743503356219,7.22088612,128.71,128.7,230.5]
[1743503357122,14.99028612,128.71,128.7,230.5]
[1743503358931,14.99028612,128.71,128.7,223.78]
[1743503359129,14.99028612,128.71,128.7,230.5]
[1743503360938,14.99028612,128.71,128.7,223.78]
[1743503361536,14.99028612,128.71,128.69,0.03]
[1743503361732,7.22088612,128.7,128.69,0.03]
[1743503362047,7.22088612,128.7,128.69,6.75]
[1743503362649,14.99088612,128.7,128.67,0.03]
[1743503362835,7.22088612,128.68,128.67,0.03]
[1743503363547,7.22088612,128.66,128.65,0.03]
[1743503363954,7.22088612,128.66,128.65,6.75]
[1743503364624,14.99328612,128.66,128.65,6.75]
[1743503366760,14.99328612,128.66,128.65,230.57]
[1743503371356,7.7721,128.67,128.65,230.57]
[1743503371853,14.99298612,128.67,128.65,230.57]
[1743503373436,7.22088612,128.66,128.65,230.57]
[1743503373848,7.7721,128.67,128.65,230.57]
[1743503374728,7.7721,128.67,128.66,6.72]
[1743503376157,7.8351,128.67,128.66,6.72]
[1743503381959,15.05598612,128.67,128.66,6.72]
[1743503384862,15.05598612,128.67,128.65,223.85]
[1743503385067,7.8351,128.67,128.66,6.72]
[1743503385241,15.05598612,128.67,128.66,6.72]
[1743503387061,15.05598612,128.67,128.65,223.85]
[1743503387263,7.22088612,128.66,128.65,223.85]
[1743503387445,7.22088612,128.66,128.65,230.57]
[1743503389669,14.99328612,128.66,128.65,230.57]
[1743503391966,14.99328612,128.66,128.65,223.85]
[1743503392267,14.99328612,128.66,128.65,230.57]
[1743503392963,0.063,128.67,128.65,230.57]
[1743503393164,0.063,128.67,128.66,1.93592314]
[1743503393374,0.063,128.67,128.66,9.70832314]
[1743503394153,0.063,128.67,128.66,1.93592314]
[1743503400669,0.063,128.67,128.66,0.31432314]
[1743503401062,0.063,128.67,128.66,0.03]
[1743503401266,7.8348,128.67,128.66,0.03]
[1743503402476,0.063,128.67,128.66,7.03432314]
[1743503403650,0.063,128.67,128.66,6.75]
[1743503403855,7.28388612,128.67,128.66,0.03]
[1743503404253,7.28388612,128.67,128.66,6.75]
[1743503404573,25.93353498,128.67,128.66,223.82]
[1743503404759,25.93353498,128.67,128.62,0.03]
[1743503404959,7.22088612,128.64,128.62,0.03]
[1743503405171,7.22088612,128.63,128.62,0.03]
[1743503405474,14.99508612,128.63,128.62,0.03]
[1743503405771,14.99508612,128.63,128.62,6.75]
[1743503406780,14.99508612,128.63,128.62,230.61]
[1743503407462,7.7742,128.63,128.62,230.61]
[1743503408154,7.7724,128.66,128.62,230.61]
[1743503408364,7.7724,128.66,128.63,0.28432314]
[1743503410782,7.7724,128.66,128.64,6.72]
[1743503410957,0.063,128.67,128.65,0.28432314]
[1743503413282,7.28388612,128.67,128.66,6.72]
[1743503413461,15.05568612,128.67,128.66,6.72]
[1743503414084,34.48518612,128.67,128.66,6.72]
[1743503415163,34.48518612,128.67,128.63,0.03]
[1743503415379,7.22088612,128.65,128.64,6.72]
[1743503415564,14.99388612,128.65,128.64,6.72]
[1743503417566,7.773,128.65,128.64,6.72]
[1743503419581,7.7724,128.66,128.64,6.72]
[1743503420182,14.99328612,128.66,128.64,6.72]
[1743503420481,14.99328612,128.66,128.65,223.88]
[1743503421793,7.7724,128.66,128.65,223.88]
[1743503422763,15.05598612,128.67,128.65,223.88]
[1743503422994,0.063,128.67,128.65,223.88]
[1743503423685,7.8349,128.67,128.65,223.88]
[1743503423994,0.063,128.67,128.65,223.88]
[1743503424872,0.063,128.66,128.65,224.16432314]
[1743503426191,7.28388612,128.66,128.65,223.88]
[1743503426490,7.28388612,128.66,128.65,230.6]
[1743503427000,7.28388612,128.66,128.65,223.86]
[1743503427374,7.28388612,128.66,128.63,0.03]
[1743503427576,7.22088612,128.64,128.63,0.03]
[1743503428204,14.99448612,128.64,128.63,6.75]
[1743503428501,14.99448612,128.64,128.63,0.03]
[1743503428699,14.99448612,128.64,128.63,6.75]
[1743503431903,14.99448612,128.64,128.63,0.03]
[1743503432092,14.99448612,128.64,128.63,6.75]
[1743503432280,14.99448612,128.64,128.63,0.03]
[1743503432482,14.99448612,128.64,128.63,6.75]
[1743503432810,62.52767946,128.64,128.62,0.03]
[1743503432989,7.22088612,128.63,128.62,0.03]
[1743503433602,14.99508612,128.63,128.62,0.03]
[1743503433996,14.99508612,128.63,128.62,6.75]
[1743503434701,14.99508612,128.63,128.62,0.03]
[1743503434908,14.99508612,128.63,128.62,6.75]
[1743503436402,42.35788612,128.63,128.58,0.03]
[1743503436609,7.22088612,128.61,128.58,0.03]
[1743503436809,7.22088612,128.61,128.59,223.92]
[1743503437786,7.22088612,128.62,128.6,6.72]
[1743503437986,7.7754,128.61,128.6,6.72]
[1743503439020,7.7742,128.63,128.6,6.72]
[1743503440110,7.22088612,128.63,128.6,6.72]
[1743503442307,0.063,128.64,128.61,0.28432314]
[1743503442984,15.05748612,128.64,128.61,0.28432314]
[1743503443218,7.22088612,128.63,128.6,6.72]
[1743503443412,7.22088612,128.63,128.59,225.79482314]
[1743503443588,7.22088612,128.62,128.61,6.72]
[1743503444499,7.7748,128.62,128.61,6.72]
[1743503445215,14.99528612,128.63,128.61,7.00432314]
[1743503445425,7.7744,128.63,128.61,6.72]
[1743503447015,7.7744,128.63,128.62,223.92]
[1743503447387,14.99528612,128.63,128.62,223.92]
[1743503447618,14.99528612,128.63,128.62,230.64]
[1743503449898,14.99528612,128.63,128.62,223.92]
[1743503450100,14.99528612,128.63,128.62,230.64]
[1743503451006,15.05828612,128.63,128.62,230.64]
[1743503452496,7.8374,128.63,128.62,230.64]
[1743503452811,0.063,128.63,128.62,230.92432314]
[1743503458112,0.063,128.63,128.62,238.69912314]
[1743503459629,0.063,128.63,128.62,230.92432314]
[1743503460612,0.063,128.63,128.62,238.69912314]
[1743503461014,0.063,128.63,128.62,230.92432314]
[1743503465441,0.063,128.63,128.62,238.69912314]
[1743503465740,0.063,128.63,128.62,14.77912314]
[1743503466935,0.063,128.63,128.62,238.65912314]
[1743503467124,0.063,128.63,128.62,230.88432314]
[1743503471544,0.063,128.63,128.62,230.6]
[1743503475058,0.063,128.63,128.62,223.88]
[1743503475235,0.063,128.63,128.62,230.6]
[1743503475432,7.28388612,128.63,128.62,223.88]
[1743503475649,7.28388612,128.63,128.62,230.6]
[1743503476054,15.05808612,128.63,128.62,230.6]
[1743503476647,15.05808612,128.63,128.62,230.63]
[1743503477155,15.05808612,128.63,128.62,223.91]
[1743503477461,15.05808612,128.63,128.62,230.63]
[1743503478659,41.64873498,128.63,128.62,230.63]
[1743503479756,41.64873498,128.63,128.62,223.9]
[1743503481159,41.64873498,128.63,128.61,0.03]
[1743503481334,7.22088612,128.62,128.61,0.03]
[1743503482359,7.22088612,128.62,128.61,6.75]
[1743503483065,14.99568612,128.62,128.61,6.75]
[1743503484462,7.7748,128.62,128.61,6.75]
[1743503484763,0.063,128.63,128.62,0.28432314]
[1743503486361,0.063,128.63,128.61,6.75]
[1743503486872,7.28388612,128.63,128.62,223.94]
[1743503488271,15.05808612,128.63,128.62,223.94]
[1743503488569,15.05808612,128.63,128.62,223.92]
[1743503488769,33.70773498,128.63,128.61,0.03]
[1743503488949,7.22088612,128.62,128.61,0.03]
[1743503489977,7.22088612,128.62,128.58,0.03]
[1743503490148,27.2727,128.63,128.58,0.31432314]
[1743503490355,34.49358612,128.63,128.59,0.28432314]
[1743503490749,15.05808612,128.63,128.59,0.28432314]
[1743503491149,7.8372,128.63,128.59,0.28432314]
[1743503491466,7.8372,128.63,128.6,6.72]
[1743503492973,15.05808612,128.63,128.6,6.72]
[1743503493360,7.8372,128.63,128.6,6.72]
[1743503496569,15.05808612,128.63,128.6,6.72]
[1743503496770,15.05808612,128.63,128.61,223.94]
[1743503500074,7.22088612,128.62,128.61,223.94]
[1743503500280,7.22088612,128.62,128.61,230.66]
[1743503500681,14.99568612,128.62,128.61,230.66]
[1743503502681,20.0,128.6,128.59,223.94]
[1743503503000,81.67,128.59,128.58,223.97]
[1743503503156,18.64964886,128.58,128.57,0.03]
[1743503503769,25.87053498,128.58,128.57,0.03]
[1743503504191,25.87053498,128.58,128.57,6.75]
[1743503505359,33.64773498,128.58,128.57,6.75]
[1743503506863,33.64773498,128.58,128.57,230.73]
[1743503507065,33.64773498,128.58,128.57,223.98]
[1743503507983,14.99808612,128.58,128.57,223.98]
[1743503508284,14.99808612,128.58,128.57,230.7]
[1743503509486,14.99808612,128.58,128.57,224.0]
[1743503510794,14.99808612,128.58,128.56,0.5386599]
[1743503511001,25.87053498,128.57,128.56,0.5386599]
[1743503511801,25.87053498,128.57,128.56,5.99e-05]
[1743503512385,53.09293498,128.57,128.53,0.03]
[1743503512587,7.22088612,128.54,128.53,0.03]
[1743503514101,7.22088612,128.55,128.53,0.03]
[1743503514306,7.22088612,128.55,128.54,6.72]
[1743503514497,14.99988612,128.55,128.54,6.72]
[1743503516713,14.99988612,128.55,128.54,230.74]
[1743503517293,14.99988612,128.55,128.54,224.04]
[1743503519102,14.99988612,128.55,128.54,230.76]
[1743503520812,14.99988612,128.55,128.54,224.04]
[1743503521010,14.99988612,128.55,128.54,230.76]
[1743503521912,14.99988612,128.55,128.54,224.04]
[1743503522211,14.99988612,128.55,128.54,230.76]
[1743503524505,14.99988612,128.55,128.54,224.04]
[1743503524713,53.09713498,128.55,128.54,230.78]
[1743503526015,34.44748612,128.55,128.54,230.78]
[1743503526509,34.51048612,128.55,128.54,230.78]
[1743503528917,53.16013498,128.55,128.54,230.78]
[1743503529101,34.51048612,128.55,128.54,230.78]
[1743503529313,0.063,128.55,128.54,239.29842314]
[1743503529605,0.063,128.59,128.58,0.28432314]
[1743503529787,0.063,128.59,128.58,7.00432314]
[1743503530905,0.063,128.59,128.54,8.2341]
[1743503531215,0.063,128.59,128.56,0.14216157]
[1743503531729,0.063,128.59,128.58,20.28432314]
[1743503532188,0.063,128.59,128.54,16.0136]
[1743503532393,0.063,128.59,128.55,7.00432314]
[1743503532815,0.063,128.59,128.58,20.28432314]
[1743503533033,0.063,128.59,128.58,28.06152314]
[1743503533908,0.063,128.59,128.54,8.2341]
[1743503534117,0.063,128.59,128.55,7.00432314]
[1743503534299,0.063,128.59,128.58,20.28432314]
[1743503534497,0.063,128.59,128.58,21.92552314]
[1743503534721,0.063,128.64,128.63,6.49662314]
[1743503534933,11.97950276,128.65,128.63,33.23662314]
[1743503535302,11.97950276,128.65,128.63,39.3863292]
[1743503535499,24.27400552,128.66,128.63,39.3863292]
[1743503535500,0.063,128.66,128.63,39.3863292]
[1743503535801,0.063,128.66,128.65,20.28432314]
[1743503536018,0.063,128.71,128.7,20.0]
[1743503536226,0.063,128.71,128.7,27.04432314]
[1743503536826,0.063,128.71,128.7,251.04432314]
[1743503537029,0.063,128.71,128.7,289.693972]
[1743503537236,0.063,128.71,128.7,291.293272]
[1743503537613,0.063,128.71,128.7,252.64362314]
[1743503537814,0.063,128.71,128.7,6.76]
[1743503538315,0.063,128.71,128.7,7.04432314]
[1743503539203,0.063,128.71,128.7,27.04432314]
[1743503540026,0.063,128.71,128.7,6.76]
[1743503540231,0.063,128.71,128.7,7.04432314]
[1743503541318,11.35842299,128.71,128.7,6.76]
[1743503541525,11.35842299,128.71,128.64,0.28432314]
[1743503541718,11.29542299,128.68,128.63,6.0008]
[1743503541923,11.29542299,128.67,128.63,0.28432314]
[1743503542231,11.29542299,128.67,128.6,6.1967]
[1743503542232,11.29542299,128.66,128.61,0.28432314]
[1743503542415,11.29542299,128.65,128.61,0.28432314]
[1743503542619,11.29542299,128.66,128.58,21.5477]
[1743503542916,11.29542299,128.66,128.6,0.28432314]
[1743503543222,11.29542299,128.63,128.6,0.28432314]
[1743503543420,18.64964886,128.63,128.61,6.8]
[1743503543616,11.29542299,128.62,128.57,0.28432314]
[1743503543817,11.29542299,128.61,128.58,6.8]
[1743503544410,11.29542299,128.6,128.58,6.8]
[1743503544828,27.2076,128.64,128.58,6.8]
[1743503545135,100.31964886,128.66,128.58,6.8]
[1743503545136,7.773,128.65,128.62,0.28432314]
[1743503545345,7.773,128.65,128.63,6.8]
[1743503545521,7.773,128.65,128.64,0.28432314]
[1743503546637,7.7712,128.68,128.64,0.28432314]
[1743503546834,7.7712,128.68,128.65,223.88]
[1743503547142,7.7706,128.69,128.66,0.28432314]
[1743503547321,7.7706,128.69,128.67,6.8]
[1743503548009,25.86128942,128.69,128.67,6.8]
[1743503548413,7.7706,128.69,128.67,6.8]
[1743503548718,7.8326,128.71,128.68,0.28432314]
[1743503549109,0.063,128.71,128.68,0.28432314]
[1743503549827,18.09068942,128.7,128.67,6.8]
[1743503550643,18.09068942,128.69,128.67,6.8]
[1743503550833,18.09068942,128.7,128.67,6.8]
[1743503551133,27.2013,128.67,128.58,20.0]
[1743503551337,18.09068942,128.65,128.59,0.14216157]
[1743503551765,18.09068942,128.63,128.58,0.14216157]
[1743503551946,18.09068942,128.63,128.55,18.933972]
[1743503552114,18.09068942,128.63,128.57,0.28432314]
[1743503552433,18.09068942,128.62,128.57,0.28432314]
[1743503553317,7.7754,128.61,128.57,0.28432314]
[1743503553522,27.214,128.61,128.57,0.28432314]
[1743503553835,45.30468942,128.61,128.57,0.28432314]
[1743503554840,45.30468942,128.61,128.56,6.84]
[1743503555013,45.30468942,128.61,128.57,6.84]
[1743503555410,18.09068942,128.6,128.57,6.84]
[1743503555613,18.09068942,128.6,128.55,0.28432314]
[1743503555818,18.09068942,128.6,128.56,6.84]
[1743503556046,18.09068942,128.6,128.55,20.0]
[1743503556243,45.30468942,128.61,128.57,6.84]
[1743503556527,100.31964886,128.66,128.58,0.28432314]
[1743503556736,18.09068942,128.65,128.59,223.9]
[1743503557135,25.86368942,128.65,128.59,223.9]
[1743503557339,7.773,128.65,128.59,223.9]
[1743503557544,25.86368942,128.65,128.59,223.9]
[1743503557719,18.09068942,128.64,128.6,0.28432314]
[1743503558216,18.09068942,128.64,128.59,223.9]
[1743503558417,18.09068942,128.63,128.59,223.9]
[1743503558941,18.09068942,128.64,128.59,223.9]
[1743503559142,7.7742,128.63,128.59,223.9]
[1743503561220,7.7712,128.68,128.63,0.28432314]
[1743503561422,7.7712,128.68,128.64,6.86]
[1743503561843,107.53148942,128.69,128.64,6.86]
[1743503562051,89.4408,128.69,128.65,0.28432314]
[1743503562246,81.67,128.69,128.65,0.28432314]
[1743503562554,89.4408,128.69,128.65,0.28432314]
[1743503563746,7.7708,128.69,128.65,0.28432314]
[1743503564443,7.8338,128.69,128.65,0.28432314]
[1743503565522,0.063,128.69,128.65,8.05722314]
[1743503565918,0.063,128.69,128.65,0.28432314]
[1743503567957,18.09068942,128.68,128.59,223.9]
[1743503568143,18.09068942,128.66,128.61,0.28432314]
[1743503568539,18.09068942,128.65,128.61,0.28432314]
[1743503569657,7.7736,128.64,128.62,6.84]
[1743503571751,7.7724,128.66,128.62,6.84]
[1743503572140,27.2034,128.66,128.62,6.84]
[1743503572855,45.29408942,128.66,128.62,6.84]
[1743503574838,27.2034,128.66,128.62,6.84]
[1743503575442,27.2034,128.66,128.59,224.18432314]
[1743503575663,27.2076,128.64,128.6,6.84]
[1743503575864,45.29828942,128.64,128.59,223.9]
[1743503576035,18.09068942,128.62,128.6,230.72]
[1743503576551,18.09068942,128.61,128.6,223.88]
[1743503577881,25.86608942,128.61,128.6,230.72]
[1743503578954,25.86608942,128.61,128.6,223.88]
[1743503579193,25.86608942,128.61,128.6,230.72]
[1743503579567,45.30468942,128.61,128.6,223.9]
[1743503579772,102.83153828,128.61,128.55,0.03]
[1743503579957,18.09068942,128.59,128.55,0.03]
[1743503580780,18.09068942,128.59,128.56,6.86]
[1743503580970,18.09068942,128.58,128.57,6.86]
[1743503581889,45.31098942,128.58,128.55,0.03]
[1743503582181,45.31098942,128.58,128.56,6.86]
[1743503582475,18.09068942,128.57,128.55,0.03]
[1743503582690,18.09068942,128.56,128.55,0.03]
[1743503583062,18.09068942,128.56,128.52,0.03]
[1743503583266,18.09068942,128.55,128.52,0.03]
[1743503583872,25.87028942,128.54,128.52,0.03]
[1743503584060,18.09068942,128.53,128.52,0.03]
[1743503584392,18.09068942,128.53,128.52,0.0001]
[1743503584696,24.89694886,128.52,128.49,0.03]
[1743503584985,18.09068942,128.5,128.49,0.03]
[1743503585756,18.09068942,128.51,128.49,0.03]
[1743503585954,7.7821,128.5,128.49,0.03]
[1743503586384,25.87278942,128.5,128.49,6.97]
[1743503586747,7.7821,128.5,128.49,230.99]
[1743503587468,25.87278942,128.5,128.49,230.99]
[1743503587874,25.87278942,128.5,128.49,231.05]
[1743503588372,44.52243828,128.5,128.49,231.05]
[1743503588579,44.52243828,128.5,128.49,231.07]
[1743503589241,44.52243828,128.5,128.49,224.05]
[1743503589566,44.52243828,128.5,128.49,231.09]
[1743503589756,44.52243828,128.5,128.49,224.05]
[1743503590068,44.52243828,128.5,128.49,231.09]